bitfinex-derivatives/quotes_BTCF0:USTF0_20230402
["timestamp","ask_amount","ask_price","bid_price","bid_amount"]
[1680414196498,0.00177124,28465.0,28464.0,0.31989881]
[1680414200888,0.00177124,28465.0,28464.0,0.38989881]
[1680414216911,0.00177124,28465.0,28464.0,0.31989881]
[1680414219528,0.00177124,28465.0,28464.0,0.62059881]
[1680414220819,0.00177124,28465.0,28464.0,0.31989881]
[1680414221011,0.00177124,28465.0,28464.0,0.25]
[1680414221012,0.07177124,28465.0,28464.0,0.25]
[1680414236818,0.07177124,28465.0,28464.0,0.3201]
[1680414237120,0.07187124,28465.0,28464.0,0.3201]
[1680414238320,0.07187124,28465.0,28464.0,0.6208]
[1680414241326,0.07187124,28465.0,28464.0,0.62069134]
[1680414241828,0.07187124,28465.0,28464.0,0.55059134]
[1680414242027,0.07147124,28465.0,28464.0,0.62079134]
[1680414245729,0.07147124,28465.0,28464.0,0.32009134]
[1680414246833,0.07167124,28465.0,28464.0,0.24989134]
[1680414248930,0.00177124,28465.0,28464.0,0.39049134]
[1680414249429,0.00177124,28465.0,28464.0,0.69119134]
[1680414280756,0.00177124,28465.0,28464.0,0.39049134]
[1680414280953,0.00177124,28465.0,28464.0,0.99189134]
[1680414287657,0.00177124,28465.0,28464.0,1.06219134]
[1680414287864,0.4471814,28469.0,28465.0,0.05]
[1680414288055,0.3222,28469.0,28468.0,0.3705]
[1680414288268,0.1249814,28470.0,28468.0,0.3705]
[1680414288457,0.1249814,28470.0,28469.0,0.0701]
[1680414289556,0.1269814,28470.0,28469.0,0.0701]
[1680414289862,0.1249814,28470.0,28469.0,0.0701]
[1680414290062,0.1269814,28470.0,28469.0,0.0721]
[1680414292362,0.002,28470.0,28469.0,0.0721]
[1680414292571,0.002,28470.0,28469.0,0.1424]
[1680414295368,0.1249814,28472.0,28470.0,0.05]
[1680414295565,0.1249814,28474.0,28471.0,0.4411]
[1680414295770,0.1249814,28474.0,28473.0,0.0703]
[1680414295967,0.1249814,28474.0,28473.0,0.1203]
[1680414296373,0.1249814,28475.0,28473.0,0.1203]
[1680414296573,0.1249814,28475.0,28474.0,0.371]
[1680414298192,0.1249814,28475.0,28474.0,0.373]
[1680414299578,0.1249814,28476.0,28474.0,0.373]
[1680414299779,0.1749814,28476.0,28475.0,0.0699]
[1680414300079,0.1249814,28476.0,28475.0,0.0699]
[1680414301381,0.1249814,28476.0,28475.0,0.0719]
[1680414303181,0.1249814,28476.0,28475.0,0.1922]
[1680414303497,0.46906797,28478.0,28475.0,0.1922]
[1680414303498,0.4256814,28478.0,28476.0,0.05]
[1680414303670,0.4256814,28478.0,28477.0,0.1406]
[1680414304278,0.1249814,28479.0,28477.0,0.4413]
[1680414304482,0.1249814,28480.0,28478.0,0.1398]
[1680414304677,0.1249814,28480.0,28479.0,0.0703]
[1680414304883,0.1249814,28480.0,28479.0,0.1203]
[1680414305083,0.1249814,28480.0,28479.0,0.0703]
[1680414306081,0.1749814,28481.0,28479.0,0.0703]
[1680414306380,0.1749814,28481.0,28480.0,0.0703]
[1680414307093,0.2452814,28481.0,28479.0,0.0722]
[1680414307283,0.05,28481.0,28480.0,0.002]
[1680414307478,0.12,28481.0,28480.0,0.002]
[1680414307686,0.24602294,28481.0,28480.0,0.002]
[1680414310385,0.19602294,28481.0,28480.0,0.002]
[1680414313689,0.07,28481.0,28480.0,0.002]
[1680414322901,0.0703,28482.0,28480.0,0.0721]
[1680414323098,0.05,28481.0,28480.0,0.002]
[1680414323298,0.05,28481.0,28480.0,0.0718]
[1680414323500,0.1203,28482.0,28480.0,0.0718]
[1680414323701,0.1203,28482.0,28481.0,0.0702]
[1680414323902,0.0703,28482.0,28481.0,0.0702]
[1680414324403,0.3007,28483.0,28481.0,0.1402]
[1680414324600,0.3007,28483.0,28482.0,0.0702]
[1680414325602,0.4207,28483.0,28481.0,0.0722]
[1680414325802,0.0703,28482.0,28481.0,0.0722]
[1680414326099,0.1203,28482.0,28481.0,0.0722]
[1680414326310,0.0703,28482.0,28481.0,0.0722]
[1680414326502,0.1203,28482.0,28481.0,0.0702]
[1680414326701,0.0703,28482.0,28481.0,0.0702]
[1680414327706,0.0703,28482.0,28481.0,0.0722]
[1680414328115,0.1203,28482.0,28481.0,0.0722]
[1680414329305,0.0703,28482.0,28481.0,0.0722]
[1680414330406,0.1203,28482.0,28481.0,0.0722]
[1680414331013,0.0703,28482.0,28481.0,0.0722]
[1680414331406,0.1203,28482.0,28481.0,0.0722]
[1680414332006,0.0703,28482.0,28481.0,0.0722]
[1680414332202,0.1203,28482.0,28481.0,0.0722]
[1680414333509,0.0703,28482.0,28481.0,0.0722]
[1680414334804,0.1203,28482.0,28481.0,0.0722]
[1680414335008,0.0703,28482.0,28481.0,0.0722]
[1680414335205,0.1203,28482.0,28481.0,0.0722]
[1680414335708,0.0703,28482.0,28481.0,0.0722]
[1680414336106,0.1203,28482.0,28481.0,0.0722]
[1680414336508,0.24632294,28482.0,28481.0,0.0722]
[1680414336698,0.19632294,28482.0,28481.0,0.0722]
[1680414337301,0.0703,28482.0,28481.0,0.0722]
[1680414337504,0.1203,28482.0,28481.0,0.0722]
[1680414337701,0.24632294,28482.0,28481.0,0.0722]
[1680414340511,0.1203,28482.0,28481.0,0.0722]
[1680414342516,0.28866797,28482.0,28481.0,0.0722]
[1680414346208,0.1203,28482.0,28481.0,0.0722]
[1680414347008,0.1203,28482.0,28481.0,0.002]
[1680414348110,0.28865105,28482.0,28481.0,0.002]
[1680414349017,0.2886525,28482.0,28481.0,0.002]
[1680414349422,0.1203,28482.0,28481.0,0.002]
[1680414354219,0.28868745,28482.0,28481.0,0.002]
[1680414354716,0.23868745,28482.0,28481.0,0.002]
[1680414354926,0.28868745,28482.0,28481.0,0.002]
[1680414356720,0.1203,28482.0,28481.0,0.002]
[1680414357618,0.28869339,28482.0,28481.0,0.002]
[1680414357827,0.1203,28482.0,28481.0,0.002]
[1680414365522,0.33068402,28482.0,28481.0,0.002]
[1680414365714,0.1203,28482.0,28481.0,0.002]
[1680414365920,0.33068402,28482.0,28481.0,0.002]
[1680414367431,0.28068402,28482.0,28481.0,0.002]
[1680414367723,0.33068402,28482.0,28481.0,0.002]
[1680414370128,0.05,28481.0,28476.0,0.0701]
[1680414370431,0.26699632,28477.0,28472.0,0.0699]
[1680414370726,0.0703,28473.0,28472.0,0.0699]
[1680414371534,0.0703,28473.0,28472.0,0.1199]
[1680414371730,0.19609632,28477.0,28476.0,0.002]
[1680414372233,0.19609632,28477.0,28475.0,0.1203]
[1680414372532,0.19609632,28477.0,28475.0,0.0703]
[1680414372732,0.19809632,28477.0,28476.0,0.002]
[1680414372928,0.19809632,28477.0,28476.0,0.052]
[1680414373133,0.19809632,28477.0,28476.0,0.002]
[1680414373332,0.19809632,28477.0,28475.0,0.1223]
[1680414373522,0.0717,28477.0,28475.0,0.1223]
[1680414373730,0.0717,28477.0,28475.0,0.0723]
[1680414373931,0.19809632,28477.0,28475.0,0.0723]
[1680414374233,0.0717,28477.0,28475.0,0.0723]
[1680414374923,0.0717,28477.0,28476.0,0.002]
[1680414375232,0.24809632,28477.0,28475.0,0.0723]
[1680414375533,0.05,28476.0,28475.0,0.0723]
[1680414375727,0.05,28476.0,28475.0,0.0703]
[1680414375928,0.1903,28476.0,28472.0,0.0701]
[1680414376130,0.07,28473.0,28472.0,0.0701]
[1680414377032,0.0703,28473.0,28472.0,0.002]
[1680414377837,0.0723,28473.0,28472.0,0.002]
[1680414380143,0.2829,28473.0,28472.0,0.002]
[1680414380343,0.05,28472.0,28467.0,0.1201]
[1680414380534,0.07,28468.0,28467.0,0.1201]
[1680414380738,0.12,28468.0,28467.0,0.0701]
[1680414380933,0.07,28468.0,28467.0,0.0701]
[1680414381938,0.072,28468.0,28467.0,0.0701]
[1680414386947,0.0723,28468.0,28467.0,0.0701]
[1680414389746,0.0721,28468.0,28466.0,0.0701]
[1680414389950,0.07,28467.0,28466.0,0.0701]
[1680414390772,0.281,28467.0,28464.0,0.24989134]
[1680414390948,0.4413,28465.0,28464.0,0.24989134]
[1680414392255,0.4413,28465.0,28464.0,0.25389134]
[1680414393345,0.4413,28465.0,28464.0,0.26689134]
[1680414397148,0.511,28465.0,28464.0,0.26689134]
[1680414397355,0.5122,28465.0,28464.0,0.26689134]
[1680414397549,0.5117,28465.0,28464.0,0.26689134]
[1680414397853,0.4413,28465.0,28464.0,0.26689134]
[1680414398241,0.5122,28465.0,28464.0,0.26689134]
[1680414398448,0.5117,28465.0,28464.0,0.26689134]
[1680414398650,0.511,28465.0,28464.0,0.26689134]
[1680414398954,0.4413,28465.0,28464.0,0.26689134]
[1680414400063,0.1406,28465.0,28464.0,0.26689134]
[1680414400356,0.5117,28465.0,28464.0,0.26689134]
[1680414400854,0.511,28465.0,28464.0,0.26689134]
[1680414401151,0.4413,28465.0,28464.0,0.26689134]
[1680414401651,0.5118,28465.0,28464.0,0.26689134]
[1680414401854,0.5116,28465.0,28464.0,0.26689134]
[1680414402057,0.5117,28465.0,28464.0,0.26689134]
[1680414402265,0.5118,28465.0,28464.0,0.26689134]
[1680414402552,0.4413,28465.0,28464.0,0.26689134]
[1680414403355,0.5116,28465.0,28464.0,0.26689134]
[1680414403554,0.4413,28465.0,28464.0,0.26689134]
[1680414404654,0.5116,28465.0,28464.0,0.26689134]
[1680414404854,0.5117,28465.0,28464.0,0.26689134]
[1680414405048,0.5118,28465.0,28464.0,0.26689134]
[1680414405254,0.5116,28465.0,28464.0,0.26689134]
[1680414405449,0.5117,28465.0,28464.0,0.26689134]
[1680414405659,0.4413,28465.0,28464.0,0.26689134]
[1680414405856,0.5116,28465.0,28464.0,0.26689134]
[1680414406059,0.5113,28465.0,28464.0,0.26689134]
[1680414406547,0.5117,28465.0,28464.0,0.26689134]
[1680414406750,0.5122,28465.0,28464.0,0.26689134]
[1680414406953,0.5109,28465.0,28464.0,0.26689134]
[1680414407153,0.511,28465.0,28464.0,0.26689134]
[1680414407355,0.4413,28465.0,28464.0,0.26689134]
[1680414408454,0.5115,28465.0,28464.0,0.26689134]
[1680414408661,0.5109,28465.0,28464.0,0.26689134]
[1680414408861,0.511,28465.0,28464.0,0.26689134]
[1680414409359,0.5115,28465.0,28464.0,0.26689134]
[1680414409553,0.5109,28465.0,28464.0,0.26689134]
[1680414409755,0.4413,28465.0,28464.0,0.26689134]
[1680414409951,0.5115,28465.0,28464.0,0.26689134]
[1680414410161,0.5109,28465.0,28464.0,0.26689134]
[1680414410653,0.511,28465.0,28464.0,0.26689134]
[1680414410852,0.5115,28465.0,28464.0,0.26689134]
[1680414411060,0.5117,28465.0,28464.0,0.26689134]
[1680414411255,0.4413,28465.0,28464.0,0.26689134]
[1680414411458,0.4413,28465.0,28464.0,0.10057641]
[1680414412060,0.5122,28465.0,28464.0,0.10057641]
[1680414412266,0.4413,28465.0,28464.0,0.10057641]
[1680414415762,0.511,28465.0,28464.0,0.10057641]
[1680414415960,0.5118,28465.0,28464.0,0.10057641]
[1680414416462,0.5116,28465.0,28464.0,0.10057641]
[1680414416658,0.5117,28465.0,28464.0,0.10057641]
[1680414416859,0.4413,28465.0,28464.0,0.10057641]
[1680414417054,0.5122,28465.0,28464.0,0.10057641]
[1680414417270,0.5113,28465.0,28464.0,0.10057641]
[1680414417869,0.4413,28465.0,28464.0,0.10057641]
[1680414421368,0.5117,28465.0,28464.0,0.10057641]
[1680414421565,0.4413,28465.0,28464.0,0.10057641]
[1680414424058,0.5116,28465.0,28464.0,0.10057641]
[1680414424270,0.5117,28465.0,28464.0,0.10057641]
[1680414424466,0.5118,28465.0,28464.0,0.10057641]
[1680414424968,0.5116,28465.0,28464.0,0.10057641]
[1680414425170,0.5117,28465.0,28464.0,0.10057641]
[1680414425369,0.5118,28465.0,28464.0,0.10057641]
[1680414425569,0.5116,28465.0,28464.0,0.10057641]
[1680414426070,0.5113,28465.0,28464.0,0.10057641]
[1680414426563,0.5117,28465.0,28464.0,0.10057641]
[1680414426769,0.5122,28465.0,28464.0,0.10057641]
[1680414426981,0.371,28465.0,28464.0,0.10057641]
[1680414429459,0.6717,28465.0,28464.0,0.10057641]
[1680414430870,0.742,28465.0,28464.0,0.10057641]
[1680414435572,0.86839632,28465.0,28464.0,0.10057641]
[1680414437671,0.93879632,28465.0,28464.0,0.10057641]
[1680414438169,0.93889632,28465.0,28464.0,0.10057641]
[1680414438371,0.86839632,28465.0,28464.0,0.10057641]
[1680414439171,0.93879632,28465.0,28464.0,0.10057641]
[1680414439371,0.93889632,28465.0,28464.0,0.10057641]
[1680414439572,0.93869632,28465.0,28464.0,0.10057641]
[1680414439774,0.93879632,28465.0,28464.0,0.10057641]
[1680414439975,0.93869632,28465.0,28464.0,0.10057641]
[1680414440175,1.00899632,28465.0,28464.0,0.10057641]
[1680414447570,0.5819,28465.0,28464.0,0.10057641]
[1680414447778,0.70829632,28465.0,28464.0,0.10057641]
[1680414448478,0.5819,28465.0,28464.0,0.10057641]
[1680414448780,0.70829632,28465.0,28464.0,0.10057641]
[1680414456896,0.56769632,28465.0,28464.0,0.10057641]
[1680414458986,0.4413,28465.0,28464.0,0.10057641]
[1680414459990,0.5819,28465.0,28464.0,0.10057641]
[1680414460289,0.75122843,28465.0,28464.0,0.10057641]
[1680414460589,0.5827,28465.0,28464.0,0.10057641]
[1680414461978,0.75126564,28465.0,28464.0,0.10057641]
[1680414464795,1.05196564,28465.0,28464.0,0.10057641]
[1680414464987,1.05196564,28465.0,28464.0,0.1004022]
[1680414476102,0.45056564,28465.0,28464.0,0.1004022]
[1680414476304,1.05196564,28465.0,28464.0,0.1004022]
[1680414480510,0.7427,28465.0,28464.0,0.1004022]
[1680414485814,0.7447,28465.0,28464.0,0.0834022]
[1680414489718,0.91326564,28465.0,28464.0,0.0834022]
[1680414490122,0.61256564,28465.0,28464.0,0.0834022]
[1680414491315,0.444,28465.0,28464.0,0.0834022]
[1680414492024,0.61256564,28465.0,28464.0,0.0834022]
[1680414495630,0.073,28465.0,28464.0,0.0834022]
[1680414496223,0.19938375,28465.0,28464.0,0.0834022]
[1680414496529,0.073,28465.0,28464.0,0.0834022]
[1680414499524,0.0723,28465.0,28464.0,0.1533022]
[1680414499831,0.19870084,28465.0,28464.0,0.1533022]
[1680414506633,0.1223,28465.0,28464.0,0.0834022]
[1680414506845,0.3322,28465.0,28464.0,0.0834022]
[1680414507226,0.54258402,28465.0,28464.0,0.0834022]
[1680414508230,0.3322,28465.0,28464.0,0.0834022]
[1680414508837,0.54286361,28465.0,28464.0,0.0834022]
[1680414510140,1.14426361,28465.0,28464.0,0.0834022]
[1680414510532,1.1442619,28465.0,28464.0,0.0834022]
[1680414512633,1.2858619,28465.0,28464.0,0.0834022]
[1680414513040,0.6844619,28465.0,28464.0,0.0834022]
[1680414513235,1.2858619,28465.0,28464.0,0.0834022]
[1680414513445,0.6844619,28465.0,28464.0,0.0834022]
[1680414513631,1.2858619,28465.0,28464.0,0.0834022]
[1680414513837,1.2358619,28465.0,28464.0,0.0834022]
[1680414514843,1.2358619,28465.0,28464.0,0.08333054]
[1680414515948,1.0252,28465.0,28464.0,0.08333054]
[1680414516843,0.8851,28465.0,28464.0,0.08333054]
[1680414522555,0.2837,28465.0,28464.0,0.08333054]
[1680414522744,0.9351,28465.0,28464.0,0.08333054]
[1680414524150,0.3337,28465.0,28464.0,0.08333054]
[1680414524456,0.9351,28465.0,28464.0,0.08333054]
[1680414528051,0.8851,28465.0,28464.0,0.08333054]
[1680414536144,1.0257,28465.0,28464.0,0.08333054]
[1680414536851,0.8846,28465.0,28464.0,0.08333054]
[1680414546548,1.0952619,28465.0,28464.0,0.08333054]
[1680414551256,0.8846,28465.0,28464.0,0.08333054]
[1680414552453,1.13633821,28465.0,28464.0,0.08333054]
[1680414560566,1.13633821,28465.0,28464.0,0.08317738]
[1680414576485,1.13618278,28465.0,28464.0,0.08317738]
[1680414576981,0.99558278,28465.0,28464.0,0.08317738]
[1680414579476,0.74384457,28465.0,28464.0,0.08317738]
[1680414582685,0.95461473,28465.0,28464.0,0.08317738]
[1680414598488,0.35321473,28465.0,28464.0,0.08317738]
[1680414598691,0.40321473,28465.0,28464.0,0.08317738]
[1680414598896,1.00461473,28465.0,28464.0,0.08317738]
[1680414606907,1.14521473,28465.0,28464.0,0.08317738]
[1680414607911,0.93444457,28465.0,28464.0,0.08317738]
[1680414608715,1.14516244,28465.0,28464.0,0.08317738]
[1680414609310,1.09516244,28465.0,28464.0,0.08317738]
[1680414612813,0.88444457,28465.0,28464.0,0.08317738]
[1680414614015,0.95457426,28465.0,28464.0,0.08317738]
[1680414619730,0.74384457,28465.0,28464.0,0.08317738]
[1680414624824,0.91241881,28465.0,28464.0,0.08317738]
[1680414627526,0.91241881,28465.0,28464.0,0.08296978]
[1680414628624,0.37284457,28465.0,28464.0,0.55326978]
[1680414628925,0.07214457,28465.0,28464.0,0.55326978]
[1680414629717,0.07214457,28465.0,28464.0,0.15326978]
[1680414630434,0.07214457,28465.0,28464.0,0.08296978]
[1680414631023,0.0703,28465.0,28464.0,0.09396978]
[1680414633126,0.371,28465.0,28464.0,0.09396978]
[1680414635826,0.0703,28465.0,28464.0,0.49396978]
[1680414636629,0.371,28465.0,28464.0,0.49396978]
[1680414642331,0.371,28465.0,28464.0,0.09396978]
[1680414643236,0.371,28465.0,28464.0,0.49396978]
[1680414648554,0.4412,28465.0,28464.0,0.09396978]
[1680414653547,0.4412,28465.0,28464.0,0.14396978]
[1680414653752,0.4412,28465.0,28464.0,0.09396978]
[1680414671761,0.56760878,28465.0,28464.0,0.09396978]
[1680414674268,0.56760878,28465.0,28464.0,0.09388251]
[1680414678678,0.511,28465.0,28464.0,0.09388251]
[1680414678968,0.5811,28465.0,28464.0,0.09388251]
[1680414694697,0.74967424,28465.0,28464.0,0.09388251]
[1680414696092,0.5811,28465.0,28464.0,0.09388251]
[1680414705917,0.2804,28465.0,28464.0,0.09388251]
[1680414706115,0.9318,28465.0,28464.0,0.09388251]
[1680414706515,0.8818,28465.0,28464.0,0.09388251]
[1680414718024,1.05037424,28465.0,28464.0,0.09388251]
[1680414718720,0.8818,28465.0,28464.0,0.09388251]
[1680414722321,1.05037424,28465.0,28464.0,0.09388251]
[1680414723126,0.05,28464.0,28459.0,0.14458251]
[1680414723331,0.0703,28461.0,28460.0,0.05]
[1680414723528,0.1406,28461.0,28460.0,0.05]
[1680414724726,0.1406,28461.0,28459.0,0.16058251]
[1680414724918,0.0703,28460.0,28459.0,0.16058251]
[1680414725120,0.0703,28460.0,28459.0,0.14458251]
[1680414725647,0.0703,28460.0,28459.0,0.16658251]
[1680414726024,0.0703,28460.0,28459.0,0.14458251]
[1680414726223,0.0713,28460.0,28459.0,0.16658251]
[1680414732734,0.0713,28460.0,28459.0,0.022]
[1680414736839,0.0713,28460.0,28459.0,0.0919]
[1680414746852,0.0711,28460.0,28459.0,0.092]
[1680414754376,0.3718,28460.0,28459.0,0.092]
[1680414754565,0.4423,28460.0,28459.0,0.022]
[1680414775388,0.4423,28460.0,28459.0,0.02187372]
[1680414775984,0.4423,28460.0,28459.0,3.72e-06]
[1680414776194,0.05,28459.0,28453.0,0.3007]
[1680414776389,0.0703,28454.0,28453.0,0.3007]
[1680414776996,0.0703,28454.0,28453.0,0.3703]
[1680414777182,0.0703,28454.0,28453.0,0.3723]
[1680414777581,0.0733,28454.0,28453.0,0.3723]
[1680414779091,0.0733,28454.0,28453.0,0.3027]
[1680414796703,0.003,28454.0,28453.0,0.423]
[1680414798710,0.3007,28463.0,28454.0,0.05]
[1680414798905,0.3199,28462.0,28458.0,0.0697]
[1680414799102,0.0703,28460.0,28459.0,0.05]
[1680414800605,0.0733,28460.0,28459.0,0.055]
[1680414801108,0.0733,28460.0,28459.0,0.005]
[1680414807113,0.0733,28460.0,28459.0,0.0752]
[1680414813322,0.0733,28460.0,28459.0,0.0749]
[1680414816821,0.0733,28460.0,28459.0,0.0753]
[1680414823738,0.0733,28460.0,28459.0,0.005]
[1680414843944,0.1436,28460.0,28459.0,0.005]
[1680414844238,0.1936,28460.0,28459.0,0.005]
[1680414845850,0.4943,28460.0,28459.0,0.005]
[1680414848053,0.4443,28460.0,28459.0,0.005]
[1680414848555,0.1436,28460.0,28459.0,0.005]
[1680414848852,0.4443,28460.0,28459.0,0.005]
[1680414853856,0.1436,28460.0,28459.0,0.005]
[1680414854052,0.4443,28460.0,28459.0,0.005]
[1680414854656,0.1436,28460.0,28459.0,0.005]
[1680414854954,0.6349,28460.0,28451.0,0.0697]
[1680414855154,0.371,28456.0,28452.0,0.05]
[1680414855344,0.0703,28453.0,28452.0,0.05]
[1680414856945,0.0699,28453.0,28452.0,0.1203]
[1680414857155,0.003,28453.0,28452.0,0.1896]
[1680414859057,0.003,28453.0,28452.0,0.4903]
[1680414859858,0.003,28453.0,28452.0,0.1896]
[1680414860260,0.003,28453.0,28452.0,0.4903]
[1680414860952,0.003,28453.0,28452.0,0.1896]
[1680414861152,0.003,28453.0,28452.0,0.4903]
[1680414863856,0.003,28453.0,28452.0,0.4403]
[1680414867062,0.003,28453.0,28452.0,0.3705]
[1680414877072,0.003,28453.0,28452.0,0.4408]
[1680414878169,0.0733,28453.0,28451.0,0.1199]
[1680414878370,0.0733,28453.0,28451.0,0.3706]
[1680414885785,0.1203,28452.0,28448.0,0.0702]
[1680414885983,0.0699,28449.0,28448.0,0.0702]
[1680414886189,0.0699,28449.0,28448.0,0.1202]
[1680414886979,0.0703,28450.0,28448.0,0.1199]
[1680414887281,0.003,28449.0,28448.0,0.1199]
[1680414890098,0.003,28449.0,28448.0,0.4206]
[1680414895893,0.003,28449.0,28448.0,0.1199]
[1680414896093,0.003,28449.0,28448.0,0.4206]
[1680414900595,0.003,28449.0,28448.0,0.1199]
[1680414900794,0.003,28449.0,28448.0,0.4206]
[1680414906503,0.003,28449.0,28439.0,0.95]
[1680414906504,0.1406,28447.0,28440.0,0.3007]
[1680414906706,0.2111,28447.0,28443.0,0.3007]
[1680414906999,0.0705,28447.0,28443.0,0.3709]
[1680414907201,0.0705,28447.0,28444.0,0.05]
[1680414907402,0.0703,28445.0,28444.0,0.05]
[1680414909090,0.0733,28445.0,28443.0,0.3709]
[1680414909391,0.0733,28445.0,28444.0,0.05]
[1680414910499,0.0703,28445.0,28443.0,0.3709]
[1680414910700,0.0733,28445.0,28443.0,0.3709]
[1680414912402,0.0703,28445.0,28443.0,0.3709]
[1680414912602,0.0733,28445.0,28443.0,0.3709]
[1680414914898,0.0733,28445.0,28444.0,0.05]
[1680414919904,0.0733,28445.0,28443.0,0.3507]
[1680414920208,0.0703,28444.0,28443.0,0.3507]
[1680414921510,0.0733,28444.0,28443.0,0.3507]
[1680414921707,0.0733,28444.0,28443.0,0.4204]
[1680414921916,0.003,28444.0,28443.0,0.4204]
[1680414946031,0.003,28444.0,28443.0,0.3704]
[1680414959442,0.003,28444.0,28443.0,0.37017159]
[1680414971350,0.003,28444.0,28443.0,0.06947159]
[1680414971549,0.003,28444.0,28443.0,0.37017159]
[1680414971938,0.003,28444.0,28443.0,0.42017159]
[1680414972250,0.003,28444.0,28443.0,0.48977159]
[1680414976851,0.003,28444.0,28443.0,0.79047159]
[1680414983855,0.3243,28453.0,28444.0,0.4046]
[1680414984055,0.3243,28453.0,28452.0,0.0702]
[1680414984356,0.0703,28455.0,28452.0,0.1202]
[1680414984659,0.0703,28455.0,28454.0,0.05]
[1680414985156,0.0703,28455.0,28453.0,0.0696]
[1680414985555,0.0733,28455.0,28454.0,0.003]
[1680414985754,0.0733,28455.0,28454.0,0.053]
[1680414985954,0.0703,28455.0,28453.0,0.0696]
[1680414986155,0.0703,28455.0,28453.0,0.0726]
[1680414986156,0.0733,28455.0,28453.0,0.0726]
[1680414987449,0.0733,28455.0,28454.0,0.003]
[1680414987956,0.0733,28455.0,28453.0,0.0726]
[1680414988350,0.0733,28455.0,28454.0,0.003]
[1680414988549,0.0733,28455.0,28454.0,0.053]
[1680414988752,0.0733,28455.0,28454.0,0.003]
[1680414988960,0.0733,28455.0,28453.0,0.0726]
[1680414990261,0.0733,28455.0,28454.0,0.003]
[1680414990559,0.0733,28455.0,28454.0,0.05]
[1680414990760,0.0733,28455.0,28453.0,0.0726]
[1680414990961,0.0703,28455.0,28453.0,0.0696]
[1680414991160,0.0733,28455.0,28454.0,0.053]
[1680414991361,0.0733,28455.0,28454.0,0.003]
[1680414991561,0.0733,28455.0,28453.0,0.0726]
[1680414992060,0.0733,28455.0,28454.0,0.003]
[1680414992360,0.0733,28455.0,28454.0,0.053]
[1680414992661,0.0733,28455.0,28454.0,0.003]
[1680414993562,0.0733,28455.0,28453.0,0.0726]
[1680414993759,0.0733,28455.0,28454.0,0.0698]
[1680414993960,0.0733,28455.0,28454.0,0.0728]
[1680414994458,0.0703,28455.0,28454.0,0.0698]
[1680414994656,0.0733,28455.0,28454.0,0.0698]
[1680414994963,0.0733,28455.0,28454.0,0.0728]
[1680414996967,0.0733,28455.0,28454.0,0.003]
[1680414999678,0.374,28455.0,28454.0,0.003]
[1680415003682,0.0733,28455.0,28454.0,0.003]
[1680415003880,0.374,28455.0,28454.0,0.003]
[1680415004382,0.3738869,28455.0,28454.0,0.003]
[1680415006980,0.4441869,28455.0,28454.0,0.003]
[1680415010684,0.05,28454.0,28446.0,0.07]
[1680415010885,0.0699,28448.0,28446.0,0.07]
[1680415012678,0.0729,28448.0,28446.0,0.07]
[1680415018493,0.0729,28448.0,28446.0,0.12]
[1680415019095,0.003,28448.0,28447.0,0.1202]
[1680415019993,0.0703,28451.0,28447.0,0.1202]
[1680415020196,0.0703,28451.0,28450.0,0.371]
[1680415021395,0.0733,28451.0,28450.0,0.371]
[1680415026999,0.003,28451.0,28450.0,0.3706]
[1680415029003,0.003,28451.0,28450.0,0.0699]
[1680415029198,0.003,28451.0,28450.0,0.3706]
[1680415033206,0.0703,28455.0,28451.0,0.05]
[1680415033503,0.0703,28455.0,28454.0,0.0703]
[1680415033699,0.0703,28455.0,28454.0,0.1203]
[1680415034399,0.0733,28455.0,28454.0,0.1233]
[1680415037007,0.003,28455.0,28454.0,0.1233]
[1680415040113,0.003,28455.0,28454.0,0.4938]
[1680415043006,0.0703,28461.0,28455.0,0.1906]
[1680415043207,0.0703,28461.0,28459.0,0.0703]
[1680415043509,0.0703,28461.0,28459.0,0.1203]
[1680415043705,0.0703,28461.0,28459.0,0.0703]
[1680415044504,0.0703,28461.0,28459.0,0.0713]
[1680415045613,0.0713,28461.0,28459.0,0.0763]
[1680415046915,0.0703,28460.0,28459.0,0.006]
[1680415048320,0.0703,28460.0,28458.0,0.3704]
[1680415048618,0.002,28460.0,28459.0,0.056]
[1680415048820,0.0723,28460.0,28459.0,0.056]
[1680415049117,0.0723,28460.0,28459.0,0.006]
[1680415049620,0.0723,28460.0,28458.0,0.3704]
[1680415049621,0.0723,28460.0,28458.0,0.3764]
[1680415049815,0.0703,28459.0,28458.0,0.3764]
[1680415050016,0.0703,28459.0,28458.0,0.3704]
[1680415051322,0.0703,28459.0,28458.0,0.3764]
[1680415051716,0.0733,28459.0,28458.0,0.3764]
[1680415054021,0.0733,28459.0,28458.0,0.377]
[1680415066828,0.003,28459.0,28458.0,0.3766]
[1680415069921,0.003,28459.0,28458.0,0.0759]
[1680415070429,0.003,28459.0,28458.0,0.3766]
[1680415070929,0.003,28459.0,28458.0,0.0759]
[1680415071524,0.003,28459.0,28458.0,0.3766]
[1680415071828,0.003,28459.0,28458.0,0.0759]
[1680415072230,0.003,28459.0,28458.0,0.3766]
[1680415072529,0.003,28459.0,28458.0,0.0759]
[1680415073521,0.003,28459.0,28458.0,0.006]
[1680415073727,0.0733,28459.0,28458.0,0.006]
[1680415091941,0.1233,28459.0,28458.0,0.00580933]
[1680415096844,0.0733,28459.0,28458.0,0.00580933]
[1680415125678,0.003,28459.0,28458.0,0.37620933]
[1680415126980,0.003,28459.0,28458.0,0.44650933]
[1680415130380,0.003,28459.0,28458.0,0.58710933]
[1680415130583,0.12643143,28466.0,28459.0,0.05]
[1680415130884,0.12643143,28467.0,28465.0,0.3705]
[1680415131082,0.12643143,28467.0,28466.0,0.1203]
[1680415131578,0.12643143,28467.0,28466.0,0.0703]